bitfinex/quotes_ETHUSD_20251019
["timestamp","ask_amount","ask_price","bid_price","bid_amount"]
[1760871590212,0.3097,3936.7,3936.5,2.58]
[1760871590424,0.3087,3936.6,3936.5,2.58]
[1760871591942,0.3087,3936.6,3936.5,5.1203277]
[1760871593043,0.3087,3936.6,3936.5,2.58]
[1760871593234,0.3087,3936.6,3936.5,5.1203277]
[1760871594108,0.001,3936.7,3936.6,2.54026317]
[1760871594345,0.001,3936.7,3936.6,12.64026317]
[1760871594745,0.3097,3936.7,3936.6,12.64026317]
[1760871595040,0.3097,3936.7,3936.6,10.1]
[1760871595429,0.3097,3936.7,3936.6,12.64026317]
[1760871595630,0.001,3936.7,3936.6,12.64026317]
[1760871596361,0.001,3936.7,3936.6,14.41632751]
[1760871599260,0.001,3936.7,3936.6,11.87606434]
[1760871599464,0.3097,3936.7,3936.6,10.1]
[1760871600278,0.3097,3936.7,3936.6,13.969]
[1760871600437,0.3097,3936.7,3936.6,16.547]
[1760871600854,0.001,3936.7,3936.6,16.547]
[1760871601059,0.001,3936.7,3936.6,20.74196317]
[1760871601269,0.001,3936.7,3936.6,18.3281]
[1760871601553,0.001,3936.7,3936.6,16.547]
[1760871601947,0.3097,3936.7,3936.6,16.547]
[1760871602859,0.001,3936.7,3936.6,16.547]
[1760871604200,0.001,3936.7,3936.6,19.08726317]
[1760871604398,0.001,3936.7,3936.6,19.52306317]
[1760871604566,0.001,3936.7,3936.6,21.89941652]
[1760871604767,0.001,3936.7,3936.6,21.92621652]
[1760871605462,0.001,3936.7,3936.6,16.34535335]
[1760871605660,0.431,3936.7,3936.6,16.6724]
[1760871605894,0.001,3936.7,3936.6,19.21266317]
[1760871606103,0.001,3936.7,3936.6,19.67526317]
[1760871606607,0.4215,3936.7,3936.6,16.6724]
[1760871606794,0.001,3936.7,3936.6,16.6724]
[1760871607297,0.001,3936.7,3936.6,21.88154401]
[1760871607867,0.001,3936.7,3936.6,19.34128084]
[1760871610494,0.001,3936.7,3936.6,18.87868084]
[1760871611376,0.001,3936.7,3936.6,22.93286784]
[1760871611809,0.001,3936.7,3936.6,25.16258084]
[1760871612212,0.001,3936.7,3936.6,26.25878084]
[1760871612383,0.001,3936.7,3936.6,25.79618084]
[1760871612713,0.001,3936.7,3936.6,22.34234784]
[1760871613025,0.001,3936.7,3936.6,19.56954784]
[1760871613240,0.001,3936.7,3936.6,19.56674784]
[1760871613603,0.001,3936.7,3936.6,20.02934784]
[1760871613822,0.001,3936.7,3936.6,21.75734784]
[1760871615180,0.001,3936.7,3936.6,24.43434784]
[1760871615380,0.001,3936.7,3936.6,24.30794784]
[1760871616620,0.001,3936.7,3936.6,21.63394784]
[1760871617317,0.001,3936.7,3936.6,21.73094784]
[1760871617481,0.001,3936.7,3936.6,24.31194784]
[1760871619310,0.001,3936.7,3936.6,24.56473682]
[1760871619511,0.001,3936.7,3936.6,24.31194784]
[1760871620108,0.001,3936.7,3936.6,24.56684784]
[1760871620424,0.001,3936.7,3936.6,24.8352099]
[1760871620631,0.001,3936.7,3936.6,25.08799888]
[1760871620819,0.0147,3937.8,3936.6,25.08799888]
[1760871620820,0.0147,3937.8,3936.6,25.60892109]
[1760871621019,0.0147,3937.8,3937.7,35.4911]
[1760871621233,0.0147,3937.8,3937.7,7.394809]
[1760871621435,0.0147,3937.8,3937.7,14.669506]
[1760871621436,0.4864,3937.8,3937.7,14.669506]
[1760871621617,0.4864,3937.8,3937.7,17.678206]
[1760871621818,0.0147,3937.8,3937.7,17.678206]
[1760871622114,0.0147,3937.8,3937.7,19.4460266]
[1760871623018,0.0147,3937.8,3937.7,19.9037266]
[1760871623344,0.0147,3937.8,3937.7,19.4460266]
[1760871623955,0.0147,3937.8,3937.7,19.9037266]
[1760871624247,0.0147,3937.8,3937.7,19.4460266]
[1760871624852,0.0147,3937.8,3937.7,19.9037266]
[1760871625333,0.0147,3937.8,3937.7,20.0301266]
[1760871625536,0.0147,3937.8,3937.7,17.4491266]
[1760871625735,0.0147,3937.8,3937.7,19.5724266]
[1760871626751,0.0147,3937.8,3937.7,16.9914266]
[1760871626917,0.0147,3937.8,3937.7,19.5724266]
[1760871627339,0.0147,3937.8,3937.7,20.0301266]
[1760871628225,0.0147,3937.8,3937.7,19.5724266]
[1760871628640,0.0147,3937.8,3937.7,20.0301266]
[1760871629743,0.0147,3937.8,3937.7,20.04505792]
[1760871630055,0.0147,3937.8,3937.7,20.0301266]
[1760871630218,0.0147,3937.8,3937.7,19.3965266]
[1760871630425,0.0147,3937.8,3937.7,20.0301266]
[1760871632148,0.0147,3937.8,3937.7,19.5724266]
[1760871633460,0.0147,3937.8,3937.7,16.9914266]
[1760871633662,0.4385,3937.8,3937.7,10.5277]
[1760871633852,0.4385,3937.8,3937.7,13.1097]
[1760871634460,0.4385,3937.8,3937.7,12.682]
[1760871634867,0.4385,3937.8,3937.7,13.1205]
[1760871635032,0.4385,3937.8,3937.7,10.5385]
[1760871635224,0.4385,3937.8,3937.2,2.582]
[1760871635556,0.4203,3937.7,3937.4,0.4385]
[1760871635729,0.0147,3937.8,3937.5,2.582]
[1760871636081,0.0147,3937.8,3937.6,13.376094]
[1760871636376,0.0147,3937.8,3937.7,14.021198]
[1760871636933,0.0147,3937.8,3937.7,23.621198]
[1760871637851,0.0147,3937.8,3937.7,15.240543]
[1760871638845,0.0147,3937.8,3937.7,15.704343]
[1760871639044,0.0147,3937.8,3937.7,17.8619323]
[1760871640371,0.0147,3937.8,3937.7,20.5389323]
[1760871640601,0.0147,3937.8,3937.7,17.1432323]
[1760871640796,0.0147,3937.8,3937.7,17.6070323]
[1760871641463,0.0147,3937.8,3937.7,17.1432323]
[1760871643664,0.0147,3937.8,3937.7,17.2696323]
[1760871644063,0.4481,3937.8,3937.7,17.2696323]
[1760871644805,0.0147,3937.8,3937.7,9.7264]
[1760871644969,0.4481,3937.8,3937.7,14.67696]
[1760871645169,0.4481,3937.8,3937.7,16.395874]
[1760871645369,0.4481,3937.8,3937.7,17.029474]
[1760871645697,0.4481,3937.8,3937.7,17.046533]
[1760871646101,0.4481,3937.8,3937.7,16.412933]
[1760871646795,0.4481,3937.8,3937.7,16.861033]
[1760871647199,0.4481,3937.8,3937.7,2.957416]
[1760871647810,0.4481,3937.8,3937.7,10.0481]
[1760871650009,0.0147,3937.8,3937.7,13.582661]
[1760871650206,0.4481,3937.8,3937.7,12.346773]
[1760871650369,0.0147,3937.8,3937.7,12.980373]
[1760871650713,0.4616,3937.8,3937.7,12.980373]
[1760871651402,0.4616,3937.8,3937.7,12.346773]
[1760871651605,0.4616,3937.8,3937.7,10.0481]
[1760871652509,0.4616,3937.8,3937.7,18.651887]
[1760871653069,0.4616,3937.8,3937.7,15.969967]
[1760871653276,0.4616,3937.8,3937.7,10.0481]
[1760871653511,0.0147,3937.8,3937.7,21.856722]
[1760871654009,0.0147,3937.8,3937.7,20.978059]
[1760871654698,0.0147,3937.8,3937.7,20.727629]
[1760871655300,0.0147,3937.8,3937.7,20.144199]
[1760871656078,0.0147,3937.8,3937.7,24.7786189]
[1760871656421,0.0147,3937.8,3937.7,18.5681609]
[1760871657381,0.0147,3937.8,3937.7,19.1583609]
[1760871660314,0.0147,3937.8,3937.7,18.6945609]
[1760871661113,0.0147,3937.8,3937.7,18.0609609]
[1760871661520,0.0147,3937.8,3937.7,18.6945609]
[1760871661827,0.4641,3937.8,3937.7,12.588308]
[1760871661999,0.4641,3937.8,3937.7,10.1745]
[1760871662382,0.4641,3937.8,3937.7,11.9025]
[1760871662814,0.4641,3937.8,3937.7,10.1745]
[1760871663023,0.4641,3937.8,3937.7,13.15032]
[1760871663223,0.0147,3937.8,3937.7,14.87832]
[1760871663427,0.0147,3937.8,3937.7,17.085352]
[1760871663612,0.0147,3937.8,3937.7,17.549152]
[1760871665620,0.001,3938.2,3938.0,0.6336]
[1760871665822,0.001,3938.2,3938.1,35.1493]
[1760871666034,0.001,3938.2,3938.1,37.59147098]
[1760871666410,0.04421743,3940.2,3938.2,2.3616]
[1760871666411,0.2305,3939.8,3938.2,2.3616]
[1760871666609,0.2305,3939.8,3938.1,47.19147098]
[1760871666610,0.6661,3939.8,3939.6,0.1264]
[1760871666813,0.2305,3939.8,3939.7,2.589]
[1760871667025,0.2305,3941.0,3939.7,2.589]
[1760871667228,0.1264,3940.5,3939.7,2.589]
[1760871667431,0.4356,3940.0,3939.7,2.589]
[1760871667747,0.04421255,3940.8,3939.7,2.589]
[1760871667748,0.2806,3940.5,3939.9,6.174352]
[1760871667905,0.04421255,3940.8,3940.1,2.753173]
[1760871668236,0.1264,3940.9,3940.2,12.189]
[1760871668407,0.2806,3940.8,3940.2,12.189]
[1760871668607,0.2806,3940.7,3940.2,12.189]
[1760871668911,0.2806,3940.6,3940.2,12.189]
[1760871669156,0.2806,3940.9,3940.6,0.1264]
[1760871669311,0.2305,3941.0,3940.7,2.589]
[1760871669510,0.2305,3941.0,3940.8,12.189]
[1760871670006,0.2806,3940.9,3940.8,12.189]
[1760871670402,0.2305,3941.0,3940.8,12.189]
[1760871670609,0.2806,3940.9,3940.8,12.189]
[1760871673156,0.2315,3941.0,3940.8,12.189]
[1760871673360,0.001,3941.0,3940.8,12.189]
[1760871674817,0.001,3941.0,3940.9,7.700385]
[1760871675146,0.001,3941.0,3940.9,8.133485]
[1760871675811,0.001,3941.0,3940.9,17.733485]
[1760871676213,0.001,3941.0,3940.9,17.300385]
[1760871676413,0.001,3941.0,3940.9,19.028385]
[1760871676632,0.001,3941.0,3940.9,19.816017]
[1760871679148,0.02537441,3942.8,3941.0,0.6336]
[1760871679348,0.02537441,3942.8,3941.4,2.3616]
[1760871679349,0.4392,3942.8,3941.4,2.3616]
[1760871679550,0.02537441,3943.9,3941.8,2.3616]
[1760871679881,0.4392,3942.7,3942.1,5.634723]
[1760871680084,0.4392,3942.7,3939.7,2.625]
[1760871680085,0.6336,3942.1,3939.7,2.625]
[1760871680287,0.6336,3941.9,3939.7,3.172904]
[1760871680449,0.6336,3941.7,3939.7,3.172904]
[1760871680646,0.46237441,3941.6,3939.7,3.172904]
[1760871680877,0.437,3941.6,3939.7,3.172904]
[1760871681078,0.437,3941.5,3939.7,3.172904]
[1760871681275,0.2173,3941.4,3939.8,14.141227]
[1760871681481,0.2173,3941.4,3940.0,2.00663]
[1760871681685,0.1887,3944.1,3941.3,8.5]
[1760871681897,9.58105,3948.5,3943.9,0.2163]
[1760871681898,0.1431,3948.3,3943.9,0.2163]
[1760871682050,0.12755281,3947.5,3944.4,2.3616]
[1760871682248,0.1431,3948.3,3943.9,0.2163]
[1760871682249,0.1431,3948.3,3944.8,9.868123]
[1760871682493,0.1431,3948.3,3945.2,0.6336]
[1760871682658,0.1431,3948.3,3946.1,7.8]
[1760871682860,0.73996174,3948.2,3945.8,2.69]
[1760871683087,0.73996174,3948.2,3945.9,2.69]
[1760871683288,0.73996174,3948.2,3945.3,0.2163]
[1760871683289,0.0014,3948.1,3945.3,0.2163]
[1760871683488,0.0014,3948.0,3945.4,5.528459]
[1760871683648,0.0014,3947.9,3944.8,2.69]
[1760871683851,0.0014,3947.9,3944.4,0.2163]
[1760871683852,1.4594,3947.8,3944.9,4.1]
[1760871684078,0.635,3947.7,3944.9,4.1]
[1760871684309,0.0014,3947.6,3944.9,4.1]
[1760871684586,0.0014,3947.5,3944.9,4.1]
[1760871684771,0.635,3947.4,3944.9,4.1]
[1760871684957,0.0014,3947.3,3944.9,4.1]
[1760871685147,0.0014,3947.2,3944.9,4.1]
[1760871685350,0.0014,3947.1,3944.9,4.0]
[1760871685610,0.0014,3947.1,3944.1,2.69]
[1760871685927,0.0014,3947.1,3943.6,0.2163]
[1760871685928,0.1417,3944.2,3943.6,0.2163]
[1760871686130,2.3616,3946.8,3943.1,2.498]
[1760871686131,0.1403,3944.7,3943.3,5.152628]
[1760871686275,0.1389,3944.9,3944.1,0.2163]
[1760871686478,0.1389,3944.9,3944.2,4.0]
[1760871687310,0.12479166,3948.3,3944.9,30.6336]
[1760871687534,0.5,4185.1,3947.4,0.2163]
[1760871687535,0.1445,3949.5,3947.4,0.2163]
[1760871687691,0.1376,3949.5,3947.6,4.078605]
[1760871688021,0.1376,3949.5,3948.1,12.953516]
[1760871688328,0.137,3950.2,3948.3,16.535246]
[1760871688616,0.265,3950.2,3948.4,0.02532671]
[1760871688814,0.1431,3950.4,3948.3,10.237569]
[1760871688981,0.386,3950.3,3948.3,10.237569]
[1760871689179,0.1431,3950.5,3948.4,0.4331]
[1760871689410,0.1264,3949.6,3948.9,0.1264]
[1760871689610,0.1431,3950.5,3948.7,11.721763]
[1760871689815,0.1445,3950.5,3949.1,9.781763]
[1760871690002,0.1445,3950.5,3949.1,9.998063]
[1760871690331,0.1431,3950.5,3949.2,9.781763]
[1760871690528,0.1417,3951.7,3950.4,0.2163]
[1760871691017,0.1417,3951.7,3950.5,3.5]
[1760871691201,0.0028,3951.6,3950.5,3.5]
[1760871691894,0.0028,3951.5,3950.5,3.5]
[1760871692294,0.1417,3951.7,3949.2,2.722]
[1760871692295,0.0028,3951.4,3949.2,2.722]
[1760871692510,0.0028,3951.3,3949.1,0.2163]
[1760871692817,0.0028,3951.2,3949.7,3.5]
[1760871693013,0.0028,3951.1,3949.7,3.5]
[1760871693213,0.6336,3950.9,3949.1,0.2163]
[1760871693415,0.6336,3950.7,3949.1,0.2163]
[1760871693617,0.04410906,3950.5,3949.1,0.2163]
[1760871693919,0.04410906,3950.5,3949.2,3.9331]
[1760871694083,0.6336,3950.4,3949.2,3.9331]
[1760871694514,0.04410906,3950.5,3949.2,3.9331]
[1760871694882,0.6336,3950.4,3949.2,3.9331]
[1760871695386,0.6336,3950.2,3949.2,3.9331]
[1760871695706,0.6336,3950.2,3948.2,0.2163]
[1760871695707,0.0028,3950.1,3948.2,0.2163]
[1760871696094,2.3616,3949.9,3948.3,3.5]
[1760871696623,0.0028,3949.8,3947.5,0.4479]
[1760871696848,0.6336,3949.6,3947.5,0.4479]
[1760871696995,0.6336,3949.6,3947.6,3.5]
[1760871696996,0.6336,3949.4,3947.6,3.5]
[1760871697183,0.6336,3949.2,3947.6,3.5]
[1760871697391,0.6336,3949.0,3947.6,3.5]
[1760871697608,0.6336,3949.0,3947.0,0.4479]
[1760871697897,0.6336,3948.8,3947.1,0.2264]
[1760871698103,0.6336,3948.6,3947.1,3.5]
[1760871698288,0.6336,3948.4,3946.4,0.2264]
[1760871698622,0.6336,3948.2,3946.4,0.2264]
[1760871698924,0.6336,3948.0,3946.4,0.2264]
[1760871699221,0.6336,3947.8,3945.8,0.2264]
[1760871699425,0.132,3946.5,3945.8,3.5]
[1760871699585,0.1264,3946.0,3945.8,3.5]
[1760871700299,0.1264,3946.0,3944.0,0.6743]
[1760871700300,0.6336,3946.3,3945.2,0.2264]
[1760871700486,0.15856,3946.2,3945.2,0.2264]
[1760871700722,0.15856,3946.2,3945.2,3.7264]
[1760871701239,0.968,3946.1,3945.3,0.4479]
[1760871701440,0.6336,3946.8,3945.3,0.4479]
[1760871701624,1.728,3946.2,3945.3,0.4479]
[1760871701979,0.6336,3946.1,3944.0,0.2264]
[1760871702154,0.49216,3946.0,3944.3,0.4479]
[1760871702336,0.49216,3946.0,3941.8,0.2264]
[1760871702338,0.6336,3945.9,3943.4,0.2264]
[1760871702661,0.6336,3945.7,3942.6,0.4479]
[1760871702876,0.6336,3945.5,3942.6,0.4479]
[1760871703056,0.6336,3945.3,3942.9,3.5]
[1760871703357,0.2484,3945.4,3941.8,0.2264]
[1760871703358,0.6336,3945.1,3942.5,0.2264]
[1760871703521,0.1494,3945.4,3942.5,0.2264]
[1760871703522,2.3616,3944.9,3942.5,0.2264]
[1760871703722,2.3616,3944.9,3942.1,0.4479]
[1760871703723,0.6336,3944.7,3942.3,0.2264]
[1760871703926,2.3616,3944.9,3942.3,0.2264]
[1760871703927,0.6336,3944.5,3942.3,0.2264]
[1760871704223,0.6336,3944.3,3942.3,0.2264]
[1760871704539,0.6336,3944.1,3942.1,0.2264]
[1760871704738,0.6336,3943.9,3942.1,0.2264]
[1760871705061,0.6336,3943.7,3942.1,0.2264]
[1760871705245,0.6336,3943.5,3941.9,3.5]
[1760871705452,0.6336,3943.5,3941.8,0.2264]
[1760871705453,0.7326,3943.5,3941.8,0.2264]
[1760871705649,0.04418321,3943.2,3941.8,0.2264]
[1760871705841,0.04418321,3943.2,3941.8,3.7264]
[1760871705842,0.6336,3943.1,3941.8,3.7264]
[1760871706159,0.6336,3942.9,3941.4,0.2264]
[1760871706369,0.14996,3942.8,3941.6,0.4479]
[1760871706661,0.6336,3942.7,3941.6,0.4479]
[1760871706961,0.6336,3942.7,3941.4,0.2264]
[1760871706962,0.6336,3942.5,3941.4,0.2264]
[1760871707448,0.6336,3942.5,3941.1,0.002]
[1760871708130,0.6336,3942.3,3941.1,0.002]
[1760871708738,0.6336,3942.1,3941.1,0.002]
[1760871709064,0.7745,3941.6,3941.1,0.002]
[1760871709377,0.6336,3941.6,3941.1,0.2284]
[1760871709731,0.6336,3941.6,3941.1,0.002]
[1760871710140,1.9716,3941.6,3941.1,0.002]
[1760871711665,0.6336,3941.6,3941.1,0.002]
[1760871711875,5.0706,3941.6,3941.1,0.002]
[1760871712253,5.11479563,3941.6,3941.1,0.002]
[1760871712661,5.0706,3941.6,3941.1,0.002]
[1760871713852,5.0666,3941.6,3941.2,0.2264]
[1760871714356,5.0666,3941.6,3941.1,0.002]
[1760871715259,0.1291,3944.6,3941.1,0.002]
[1760871715460,0.1408,3943.7,3941.6,4.206483]
[1760871715683,0.1408,3943.7,3941.8,3.279483]
[1760871715889,0.1408,3943.7,3941.9,0.4479]
[1760871716488,0.787,3943.6,3941.9,0.4479]
[1760871716692,0.1404,3943.9,3941.9,0.4479]
[1760871716876,0.04419267,3943.3,3941.9,0.4479]
[1760871717277,0.04419267,3943.3,3943.2,0.2264]
[1760871717607,0.04419267,3943.3,3943.2,0.6743]
[1760871717767,0.04419267,3943.3,3943.2,0.2264]
[1760871718173,0.455,3944.6,3943.2,0.6743]
[1760871718482,0.432,3944.5,3943.3,0.4479]
[1760871718799,0.099,3945.5,3944.4,0.2264]
[1760871719016,0.1393,3946.5,3945.4,0.2264]
[1760871719201,0.384,3946.4,3945.4,0.2264]
[1760871720100,0.384,3946.4,3944.9,0.4479]
[1760871720404,0.484,3946.4,3944.9,0.4479]
[1760871720601,0.6336,3946.3,3944.4,0.2264]
[1760871720898,0.484,3946.4,3944.5,0.4479]
[1760871720899,0.1,3946.4,3944.5,0.4479]
[1760871721103,1.19,3946.2,3944.5,0.4479]
[1760871721608,0.1264,3944.9,3944.4,0.2264]
[1760871721915,0.1264,3944.6,3944.4,0.2264]
[1760871722102,0.1264,3944.6,3944.4,0.6743]
[1760871722407,0.1264,3944.6,3944.5,0.4479]
[1760871722595,0.1264,3945.0,3944.5,0.4479]
[1760871722782,0.1264,3945.0,3944.6,0.4479]
[1760871723102,0.1264,3945.0,3944.7,0.4479]
[1760871724125,0.1264,3945.0,3944.8,0.4479]
[1760871724637,0.6336,3946.1,3944.4,0.2264]
[1760871724638,0.09999999,3955.2,3949.0,0.05]
[1760871724785,0.1716,3955.0,3951.9,4.5704]
[1760871724989,0.1716,3955.0,3952.1,34.5704]
[1760871724990,0.1716,3954.9,3952.1,34.5704]
[1760871725227,0.1716,3954.9,3952.0,6.26393493]
[1760871725228,0.3526,3954.9,3952.4,4.5704]
[1760871725427,0.3526,3954.9,3952.0,0.2213]
[1760871725428,0.3526,3954.9,3952.7,1.728]
[1760871725739,0.04409822,3953.7,3952.9,4.5704]
[1760871726044,0.1716,3955.0,3953.0,4.5704]
[1760871726207,0.04408488,3954.3,3952.9,4.5704]
[1760871726521,0.099,3954.2,3952.3,0.60700625]
[1760871727131,0.099,3954.1,3952.1,0.60700625]
[1760871727305,0.099,3954.0,3951.7,0.60700625]
[1760871727620,0.04406068,3953.8,3951.5,0.60700625]
[1760871727836,1.3,3953.7,3951.5,0.60700625]
[1760871727991,0.31278,3953.6,3951.5,0.60700625]
[1760871728198,1.728,3953.4,3951.2,0.60700625]
[1760871728397,0.1014,3953.3,3951.2,0.60700625]
[1760871729416,0.04406867,3952.8,3951.2,0.60700625]
[1760871729593,0.56,3952.7,3951.3,0.452]
[1760871729795,2.812,3952.6,3951.4,0.60700625]
[1760871730112,0.34160687,3952.5,3951.1,0.60700625]
[1760871730513,0.04408724,3952.2,3951.1,0.60700625]
[1760871730932,2.76608724,3952.2,3951.3,0.60700625]
[1760871731137,0.56,3952.1,3951.3,0.60700625]
[1760871733435,2.804,3952.0,3951.3,0.60700625]
[1760871733642,2.803,3951.9,3951.3,0.60700625]
[1760871734482,0.3364,3952.0,3951.3,0.60700625]
[1760871734659,2.802,3951.8,3951.3,0.60700625]
[1760871734878,2.802,3951.8,3951.3,0.38235822]
[1760871735033,2.802,3951.8,3948.9,0.2213]
[1760871735034,2.3616,3951.5,3949.3,0.4334]
[1760871735228,4.001238,3951.2,3949.3,0.4334]
[1760871735571,1.728,3950.9,3949.3,0.4334]
[1760871735739,1.728,3951.0,3949.4,2.258283]
[1760871735948,0.1729,3950.9,3949.3,0.4334]
[1760871736267,0.1729,3950.9,3949.4,2.151083]
[1760871736479,0.6336,3950.7,3949.4,2.151083]
[1760871736640,0.6336,3950.5,3949.1,0.2298]
[1760871736827,1.728,3950.3,3949.2,0.4334]
[1760871737025,3.2648,3950.2,3949.2,0.4334]
[1760871737224,0.4538,3950.2,3949.2,0.4334]
[1760871737430,2.811,3950.1,3949.2,0.4334]
[1760871738135,0.04411251,3949.9,3948.3,0.2298]
[1760871738356,4.001238,3949.6,3948.4,0.4334]
[1760871738554,1.728,3949.7,3948.5,2.155005]
[1760871738763,1.728,3949.7,3948.6,0.4334]
[1760871738957,2.1817,3949.7,3948.6,0.4334]
[1760871739557,2.809,3949.6,3948.6,0.4334]
[1760871739990,2.809,3949.6,3948.3,0.2298]
[1760871740206,4.001238,3949.5,3948.3,0.2298]
[1760871741194,1.728,3949.5,3948.0,0.2298]
[1760871741354,0.7263938,3949.4,3948.0,0.2298]
[1760871741553,4.099938,3949.3,3947.7,0.2298]
[1760871741755,4.001238,3949.2,3947.7,0.2298]
[1760871742059,4.001238,3949.2,3947.4,0.2298]
[1760871742266,1.728,3948.7,3947.4,0.2298]
[1760871742452,1.728,3948.7,3947.0,0.6632]
[1760871742453,5.729238,3948.5,3947.0,0.2298]
[1760871742649,4.001238,3948.4,3947.0,0.2298]
[1760871743079,4.100638,3948.3,3946.5,0.4334]
[1760871743389,4.001238,3948.2,3946.5,0.4334]
[1760871743571,4.001238,3948.0,3946.5,0.4334]
[1760871743769,4.001238,3948.0,3946.0,0.2298]
[1760871743975,4.001238,3947.8,3946.0,0.2298]
[1760871744155,4.634838,3947.5,3944.6,0.2298]
[1760871744354,2.3616,3947.1,3944.7,0.4334]
[1760871744554,2.3616,3946.8,3944.7,0.4334]
[1760871744775,4.001238,3946.7,3944.7,0.4334]
[1760871744973,0.1264,3945.4,3944.7,0.5598]
[1760871745177,2.803,3945.3,3944.7,0.5598]
[1760871745382,2.803,3945.3,3944.6,0.2298]
[1760871745689,0.1264,3945.0,3944.3,0.3562]
[1760871746464,2.803,3945.3,3944.3,0.2298]
[1760871746669,0.1264,3944.6,3944.3,0.2298]
[1760871746869,2.799,3944.5,3943.9,0.2298]
[1760871747105,0.1264,3944.3,3943.9,0.2298]
[1760871747303,0.1264,3944.3,3943.9,0.6632]
[1760871747471,0.1264,3944.3,3943.9,0.2298]
[1760871747670,0.1264,3944.3,3944.0,0.4334]
[1760871747898,0.1264,3944.3,3944.1,0.2298]
[1760871748208,0.1264,3944.3,3944.1,0.6632]
[1760871748405,0.1264,3944.3,3944.2,0.4334]
[1760871748610,0.04415846,3945.6,3944.2,0.5598]
[1760871748611,0.27,3944.7,3944.2,0.5598]
[1760871748770,0.27,3944.7,3944.2,0.1264]
[1760871749109,0.27,3944.7,3944.3,0.4334]
[1760871749284,0.27,3944.7,3944.2,0.1264]
[1760871749480,0.1264,3944.6,3944.0,0.1264]
[1760871749812,0.1264,3944.6,3944.1,0.2298]
[1760871749996,0.27,3944.7,3943.6,2.198369]
[1760871750174,0.1718,3945.3,3944.1,0.2298]
[1760871750378,0.685,3945.2,3944.1,0.2298]
[1760871750674,1.393,3945.1,3944.1,0.6632]
[1760871751274,0.1718,3945.3,3944.1,0.6632]
[1760871751474,0.21596308,3945.3,3944.1,0.6632]
[1760871751688,0.683,3945.2,3944.1,0.6632]
[1760871752702,0.04416308,3945.3,3944.1,0.6632]
[1760871753008,0.517,3945.2,3944.1,0.6632]
[1760871753411,0.04416308,3945.3,3944.1,0.6632]
[1760871753715,0.516,3945.2,3944.2,0.4334]
[1760871755982,0.04416308,3945.3,3944.2,0.4334]
[1760871756219,0.55616308,3945.3,3944.2,0.4334]
[1760871756580,0.04416308,3945.3,3944.3,5.847256]
[1760871756901,0.04416308,3945.3,3945.2,0.2233]
[1760871757103,0.1698,3945.8,3944.4,0.6510456]
[1760871757291,0.1698,3945.8,3944.1,0.6914]
[1760871757635,0.0997,3945.7,3943.3,0.4616]
[1760871757926,0.0997,3945.6,3943.3,0.4616]
[1760871758133,0.0997,3945.5,3943.3,0.4616]
[1760871758285,0.0997,3945.4,3943.3,0.4616]
[1760871758686,0.0997,3945.4,3943.7,4.240349]
[1760871758881,0.0997,3945.4,3943.9,3.573795]
[1760871759119,0.0997,3945.4,3943.8,0.4931749]
[1760871759296,0.0997,3945.4,3943.6,0.4616]
[1760871759528,0.0997,3945.3,3943.3,0.2233]
[1760871759715,0.0997,3945.2,3942.9,0.2233]
[1760871759916,0.468,3945.5,3942.9,0.2233]
[1760871759917,0.0997,3945.1,3943.0,0.3562]
[1760871760118,0.1264,3943.7,3943.0,0.3562]
[1760871760588,0.1264,3943.2,3942.9,0.2233]
[1760871760797,0.1264,3943.2,3943.1,0.2233]
[1760871761001,0.172,3944.0,3943.1,0.6849]
[1760871761202,0.1264,3943.8,3943.1,0.8113]
[1760871761735,0.1264,3943.8,3943.1,0.3497]
[1760871762234,0.1264,3943.8,3943.1,1.1463]
[1760871762584,0.1264,3943.8,3943.1,0.3497]
[1760871762787,0.04417447,3944.0,3942.9,0.2233]
[1760871762788,0.1742,3943.7,3942.9,0.2233]
[1760871764422,0.1742,3943.7,3943.1,0.002]
[1760871764810,0.04417447,3944.0,3943.1,0.2253]
[1760871766829,0.04417447,3944.0,3943.2,0.4616]
[1760871767527,0.04417447,3944.0,3943.2,0.82982]
[1760871769216,0.04417447,3944.0,3943.1,0.002]
[1760871769421,0.04417447,3944.0,3943.1,0.2253]
[1760871769825,0.04417447,3944.0,3943.2,0.4616]
[1760871770332,0.099,3944.7,3943.2,0.4616]
[1760871771229,0.04417593,3945.0,3943.2,0.4616]
[1760871771428,0.04417593,3945.0,3943.3,0.25269]
[1760871771635,0.1689,3945.1,3943.4,0.48139986]
[1760871771817,0.1689,3945.1,3943.4,0.4616]
[1760871771818,0.04417255,3944.6,3943.4,0.4616]
[1760871772133,0.14317255,3944.6,3943.2,0.2233]
[1760871772698,0.1264,3943.5,3943.2,0.2233]
[1760871772893,0.1264,3943.5,3943.3,0.4616]
[1760871773127,0.1264,3943.5,3943.4,0.4616]
[1760871774052,0.14317255,3944.6,3943.4,0.4616]
[1760871774053,0.1264,3943.8,3943.4,0.4616]
[1760871774207,0.1264,3944.0,3943.5,0.4616]
[1760871774528,0.1264,3944.0,3943.6,0.4616]
[1760871774707,0.1264,3944.0,3943.7,0.4616]
[1760871775027,0.1264,3944.0,3943.4,0.1264]
[1760871775230,0.1264,3944.0,3943.4,3.211]
[1760871775638,0.1264,3944.0,3943.5,0.01960463]
[1760871775834,0.1264,3944.0,3943.4,3.09303]